{"text_format":"3","workbook":"xlsx","n_sheets":3,"sheets":["Listas","Instrucciones","09"],"not_rendered":{"images":1,"macros":1,"external_links":1,"defined_names":9},"read":"whole","date_system":"1900"}

{"sheet":"Listas","index":0,"n_rows":5,"n_cols":4,"rows_kept":5,"hidden":true}
["Sentido","Ascendente","Descendente","No definido"]
["ascendente","acumulado","acumulado","maximo permisible"]
["descendente","no acumulado","no acumulado","minimo permisible"]
["no_definido","seleccionar","seleccionar","seleccionar"]
["seleccionar"]

{"sheet":"Instrucciones","index":1,"n_rows":5,"n_cols":4,"rows_kept":5,"merged":[[4,1,4,8],[5,1,38,8]]}
[]
[{"$nulls":3},"Centro Nacional de Planeamiento Estratégico"]
[{"$nulls":3},"Dirección Nacional de Seguimiento y Evaluación (DNSE)"]
[]
[null,"Guía para completar el reporte de seguimiento"]

{"sheet":"09","index":2,"n_rows":127,"n_cols":24,"rows_kept":127,"merged":[[1,1,2,8],[1,12,1,21],[4,12,4,15],[6,12,6,15],[8,12,8,15],[12,1,13,1],[12,2,13,2],[12,3,13,3],[12,4,13,4],[12,5,13,5],[12,6,13,6],[12,7,12,8],[12,9,12,14],[12,15,12,20]]}
[]
[null,"REPORTE DE SEGUIMIENTO DE LA  POLÍTICA NACIONAL MARÍTIMA AL AÑO 2024",{"$nulls":10},"Sémaforo del nivel de cumplimiento del Avance Tipo 1, por elemento"]
[]
[{"$nulls":16},"[0-75%>","[75-95%>","≥ 95%","ND","Total"]
[null,"Sector:","26: DEFENSA",{"$nulls":9},"Objetivos prioritarios",{"$nulls":3},{"$f":"COUNTIFS(B15:B119,\"=OP*\",V15:V119,\"<75\",V15:V119,\"<>ND\")","v":1},{"$f":"COUNTIFS(B15:B119,\"=OP*\",V15:V119,\">=75\",V15:V119,\"<95\",V15:V119,\"<>ND\")","v":1},{"$f":"COUNTIFS(B15:B119,\"=OP*\",V15:V119,\">=95\",V15:V119,\"<>ND\")","v":3},{"$f":"COUNTIFS(B15:B119,\"=OP*\",V15:V119,\"=ND\")","v":0},{"$f":"COUNTIFS(B15:B119,\"=OP*\")","v":5}]
[]
[null,"Ministerio conductor:","026: MINISTERIO DE DEFENSA",{"$nulls":9},"Indicadores de objetivos prioritarios",{"$nulls":3},{"$f":"COUNTIFS(B15:B119,\"=IOP*\",V15:V119,\"<75\",V15:V119,\"<>ND\")","v":1},{"$f":"COUNTIFS(B15:B119,\"=IOP*\",V15:V119,\">=75\",V15:V119,\"<95\",V15:V119,\"<>ND\")","v":1},{"$f":"COUNTIFS(B15:B119,\"=IOP*\",V15:V119,\">=95\",V15:V119,\"<>ND\")","v":4},{"$f":"COUNTIFS(B15:B119,\"=IOP*\",V15:V119,\"=ND\")","v":0},{"$f":"COUNTIFS(B15:B119,\"=IOP*\")","v":6}]
[]
[null,"Tipo:","MULTISECTORIAL",{"$nulls":9},"Indicadores de servicios",{"$nulls":3},{"$f":"COUNTIFS(B15:B119,\"=ISS*\",V15:V119,\"<75\",V15:V119,\"<>ND\")","v":0},{"$f":"COUNTIFS(B15:B119,\"=ISS*\",V15:V119,\">=75\",V15:V119,\"<95\",V15:V119,\"<>ND\")","v":0},{"$f":"COUNTIFS(B15:B119,\"=ISS*\",V15:V119,\">=95\",V15:V119,\"<>ND\")","v":26},{"$f":"COUNTIFS(B15:B119,\"=ISS*\",V15:V119,\"=ND\")","v":2},{"$f":"COUNTIFS(B15:B119,\"=ISS*\")","v":28}]
[]
[]
[]
[null,"Código","Objetivo prioritario / \nLineamiento / \nServicio / \nIndicador","Responsable de indicador","Tipo de indicador / Estándar de cumplimiento","Sentido esperado","Tipo de agregación","Linea base",null,"Logros esperados",{"$nulls":5},"Valores obtenidos",{"$nulls":5},"Avance Tipo 1\n(%)"]
[{"$nulls":7},"Año","valor",2019,2020,2021,2022,2023,2024,2019,2020,2021,2022,2023,2024,2024]
[null,"OP.01","Fortalecer la influencia del Perú en asuntos marítimos internacionales.",{"$nulls":18},{"$f":"+AvanceObjetivo(V16:V17)","v":{"v":100,"d":"100.0"}}]
[null,"IOP.01.01","Porcentaje de la participación del Perú en los principales espacios marítimos internacionales.","R.R. E.E.",null,"ascendente","acumulado",2018,68.42,68.42,71.05,73.68,76.31,78.94,81.75,"ND",65.4,65.4,65.4,null,90.9,{"v":100,"d":"100.0"},null,{"$f":"((U16/O16)*100)","v":{"v":111.19266055045873,"d":"111.19"}}]
[null,"IOP.01.02","Índice de influencia del Perú en asuntos marítimos internacionales.","R.R. E.E.",null,"ascendente","acumulado",2020,"ND","ND","ND","ND","ND","ND","ND","ND","ND",0.82,0.87," ",0.875,{"v":100,"d":"100.0"},null,{"$f":"((U17/O17)*100)","v":{"$error":"#VALUE!"}}]
[null,"LN.01.01","Incrementar en las reuniones y foros internacionales vinculados a los asuntos del mar, la participación activa de las delegaciones del Perú."]
[null,"LN.01.02","Coordinar iniciativas orientadas a salvaguardar los derechos e intereses marítimos nacionales, incluyendo la promoción de la cooperación técnica en foros y procesos internacionales."]
[null,"SS.01.02.01","Defensa permanente de los intereses y derechos del Perú sobre asuntos marítimos."]
[null,"ISS.01.02.01.01","Porcentaje de foros y procesos internacionales identificados como de relevante importancia, en los que el Perú participa en forma permanente.","R.R. E.E.",null,"ascendente","no acumulado","ND","ND","ND","ND","ND","ND","ND","ND","ND","ND","ND",89.6," ",81.8,{"v":100,"d":"100.0"},null,{"$error":"#VALUE!"}]
[null,"LN.01.03","Fortalecer la coordinación y articulación de las Políticas sobre el ámbito marítimo con los tres niveles de gobierno."]
[null,"LN.01.04","Articular la gestión sostenible sobre asuntos marítimos entre el Estado, la sociedad civil y el mercado."]
[null,"LN.01.05","Promover a nivel internacional los destinos turísticos ubicados en el ámbito marítimo nacional."]
[null,"OP.02","Fortalecer las actividades productivas en el ámbito marítimo, en forma racional y sostenible.",{"$nulls":18},{"$f":"+AvanceObjetivo(V26:V26)","v":32.5}]
[null,"IOP.02.01","Porcentaje de participación del PBI marítimo en el PBI nacional.","INEI",null,"no_definido","no acumulado",2018,"ND",4,4,4,4,4,4,"ND","ND","ND","ND",null,1.3,32.5,null,{"v":32.5,"d":"32.50"}]
[null,"LN.02.01","Incrementar el aprovechamiento sostenible de los recursos no renovables (no vivos) marinos del dominio marítimo, las aguas interiores y la alta mar."]
[null,"SS.02.01.01","Servicio de identificación en forma permanente del potencial de los recursos no vivos del suelo y subsuelo de nuestro dominio marítimo."]
[null,"ISS.02.01.01.01","Porcentaje de nuestro dominio marítimo explorado.","MINEM",null,"ascendente","acumulado",null,"ND","ND","ND","ND","ND","ND","ND","ND",1.92,1.92,2.2,null,"ND",{"$f":"+AvanceTipo1(F29,G29,O29,U29)","v":"ND"},null,{"$error":"#VALUE!"}]
[null,"LN.02.02","Incrementar el nivel técnico, profesional y jurídico legal según corresponda, de las mujeres y hombres involucrados en el ámbito marítimo."]
[null,"LN.02.03","Incentivar la investigación científica, el desarrollo tecnológico y la innovación, respecto al mar y sus recursos por los actores del ámbito marítimo."]
[null,"SS.02.03.01","Gestión de la investigación científica multidisciplinaria para los actores del ámbito marítimo."]
[null,"ISS.02.03.01.01","Número de publicaciones científicas, solicitudes de patente, número de investigadores RENACYT relacionados con el ámbito marítimo en el periodo anual.","CONCYTEC",null,"ascendente","acumulado",null,"ND","ND","ND","ND","ND","ND","ND",132,125,206,183,210,174,{"v":100,"d":"100.0"},null,{"$error":"#VALUE!"}]
[null,"LN.02.04","Fortalecer la coordinación y articulación del aprovechamiento de los recursos sostenibles entre las entidades públicas de los tres niveles de gobierno vinculados al sector productivo del ámbito marítimo."]
[null,"LN.02.05","Fortalecer las capacidades de supervisión, control y fiscalización de las actividades productivas en el ámbito marítimo en las entidades públicas competentes."]
[null,"LN.02.06","Difundir el conocimiento sobre las posibilidades que se tiene del uso y aprovechamiento de los recursos disponibles del ámbito marítimo por la población."]
[null,"SS.02.06.01","Difusión permanente del enfoque ambiental, uso y aprovechamiento del ámbito marítimo a estudiantes de nivel de educación básica."]
[null,"ISS.02.06.01.01","Número de recursos educativos, documentos técnicos o dispositivos normativos que incorporan la valoración y aprovechamiento de los recursos naturales del Perú, el cual incluye los recursos del ámbito marítimo; dirigidos a especialistas, docentes y directivos.","MINEDU",null,"no_definido","minimo permisible",null,"ND","ND","ND","ND","ND","ND","ND","ND",3,3,3," ",1,{"v":100,"d":"100.0"}]
[null,"LN.02.07","Mejorar la oferta y las condiciones generales de los destinos turísticos en el ámbito marítimo nacional."]
[null,"LN.02.08","Promover la práctica de la náutica deportiva en la población nacional."]
[null,"LN.02.09","Fortalecer la inserción laboral formal de las mujeres en las actividades del ámbito marítimo."]
[null,"OP.03","Incrementar el comercio de manera sostenible y diversificada en el ámbito marítimo.",{"$nulls":18},{"$f":"+AvanceObjetivo(V43:V43)","v":{"v":100,"d":"100.0"}}]
[null,"IOP.03.01","Variación porcentual del movimiento de carga por vía marítima a nivel nacional.","MTC",null,"ascendente","no acumulado",2018,3,3,5,4,5,1,4,0.5,-10.3,13.9,-0.3,7.3,14.5,362.5,null,{"v":362.5,"d":"362.50"}]
[null,"LN.03.01","Incentivar las inversiones en infraestructura portuaria y servicios conexos."]
[null,"SS.03.01.01","Promoción oportuna de las inversiones en el litoral peruano, del Plan de Desarrollo Portuario Nacional para los inversionistas portuarios públicos y privados."]
[null,"ISS.03.01.01.01","Porcentaje de iniciativas de inversión públicas y privadas alcanzadas en el marco de la promoción del Plan de Desarrollo Portuario Nacional, con respecto a lo programado en este.","MTC",null,"ascendente","no acumulado",2020,99,"ND",99,31,72,62,"ND","ND",99,31,72,62,86.8,{"v":100,"d":"100.0"},null,{"$error":"#VALUE!"}]
[null,"LN.03.02","Consolidar el sistema de facilitación del comercio exterior en el ámbito marítimo."]
[null,"SS.03.02.01","Sistema integrado de intercambio de información entre los diversos agentes públicos para el ingreso y salida de naves."]
[null,"ISS.03.02.01.01","Tiempo promedio de resolución de expedientes incorporados a la VUCE respecto al año anterior.","MINCETUR",null,"descendente","no acumulado",2019,0.81,"ND","ND","ND","ND","ND","ND",0.81,1.35,1.38,1.77,1.92,1.88,{"v":100,"d":"100.00"},null,{"$error":"#VALUE!"}]
[null,"LN.03.03","Consolidar el control y seguridad que coadyuve a un eficiente y competitivo transporte marítimo."]
[null,"SS.03.03.01","Control oportuno de documentación a las naves que efectúan transporte marítimo."]
[null,"ISS.03.03.01.01","Porcentaje de naves con control de documentación oportuna dentro de los plazos establecidos.","MTC",null,"ascendente","no acumulado",2020,100,"ND",100,100,100,100,100,"ND",100,100,100,100,100,{"v":100,"d":"100.0"},null,{"v":100,"d":"100.00"}]
[null,"LN.03.04","Optimizar los procesos y servicios de la cadena logística marítimo portuaria."]
[null,"SS.03.04.01","Asistencia técnica integral en la formación de cadenas logísticas desde los centros de producción o distribución hasta los puertos y viceversa, a los agentes económicos vinculados con el comercio marítimo."]
[null,"ISS.03.04.01.01","Número de asistencias técnicas efectuadas para la formación de cadenas logísticas integrales.","MTC",null,"ascendente","no acumulado",2019,52,52,52,52,52,52,52,52,52,52,52,52,52,{"v":100,"d":"100.0"},null,{"v":100,"d":"100.00"}]
[null,"LN.03.05","Generar capacidades para la internacionalización de la oferta exportable del ámbito marítimo."]
[null,"SS.03.05.01","Capacitación para el desarrollo de una cultura exportadora al sector empresarial."]
[null,"ISS.03.05.01.01","Incremento porcentual de empresas capacitadas para el desarrollo de una cultura exportadora.","MINCETUR",null,"ascendente","no acumulado",2019,"ND","ND",10,20,30,40,50,"ND",185,78,-69,134,93,{"v":100,"d":"100.0"},null,{"v":186,"d":"186.00"}]
[null,"LN.03.06","Fortalecer la coordinación y articulación de las regulaciones vinculados al comercio marítimo entre las entidades públicas de los tres niveles de gobierno."]
[null,"LN.03.07","Mejorar las condiciones operacionales, administrativas y normativas del cabotaje marítimo."]
[null,"SS.03.07.01","Fomento del desarrollo del cabotaje marítimo efectivo a los agentes económicos vinculados."]
[null,"ISS.03.07.01.01","Variación porcentual de la cantidad de toneladas transportadas anualmente en litoral peruano.","MTC",null,"ascendente","no acumulado",2019,100,100,-28.6,6.2,0.4,18.3,"ND",100,-28.6,6.2,0.4,18.3,11.9,{"v":100,"d":"100.0"},null,{"$error":"#VALUE!"}]
[null,"LN.03.08","Fortalecer los servicios de ayuda a la navegación en al ámbito marítimo nacional."]
[null,"SS.03.08.01","Actualización permanente de la cartografía náutica nacional."]
[null,"ISS.03.08.01.01","Porcentaje de cartografía náutica nacional actualizada en relación al Plan Cartográfico Nacional.","HIDROGRAFIA",null,"ascendente","no acumulado",2019,79.94,"ND",16.7,16.7,75,79.94,"ND","ND",16.7,16.7,75,25,50,{"v":100,"d":"100.0"},null,{"$error":"#VALUE!"}]
[null,"SS.03.08.02","Mantenimiento permanente de ayudas a la navegación en el ámbito marítimo nacional."]
[null,"ISS.03.08.02.01","Porcentaje de ayudas a la navegación actualizadas por la DHN, de acuerdo a los avances tecnológicos.","HIDROGRAFIA",null,"descendente","no acumulado",2019,75.8,75.8,79,80,81,82,"ND","ND",67,66,64,67,67,{"v":100,"d":"100.0"},null,{"$error":"#VALUE!"}]
[null,"SS.03.08.03","Difusión oportuna de las condiciones océano meteorológicas del ámbito marítimo a la población nacional."]
[null,"ISS.03.08.03.01","Número de eventos océano meteorológicas que causaron efectos desfavorables no reportados a tiempo.","HIDROGRAFIA",null,"no_definido","no acumulado",2019,56,"ND",56,56,56,56,"ND","ND",39,39,39,40,0,{"v":100,"d":"100.0"},null,{"$error":"#VALUE!"}]
[null,"LN.03.09","Potenciar la capacidad y competitividad de la industria de construcciones y reparaciones navales."]
[null,"OP.04","Asegurar la sostenibilidad de los recursos y ecosistemas en el ámbito marítimo.",{"$nulls":18},{"$f":"+AvanceObjetivo(V72:V72)","v":{"v":85.38,"d":"85.4"}}]
[null,"IOP.04.01","Porcentaje de bahías monitoreadas que cumplen con el estándar de calidad ambiental de agua de mar.","MINAM",null,"ascendente","no acumulado",2018,80,86,86,86,93,93,93,"ND","ND","ND","ND"," ",79.4,{"v":85.38,"d":"85.4"},null,{"v":85.37634408602152,"d":"85.38"}]
[null,"LN.04.01","Fortalecer la gestión integrada para el uso sostenible de los recursos naturales y ecosistemas."]
[null,"SS.04.01.01","Asistencia técnica en la gestión de planes de manejo integral en las zonas marino-costeras, en coordinación con otros sectores a los equipos técnicos de las unidades de manejo integrado."]
[null,"ISS.04.01.01.01","Porcentaje de asistencias técnicas a los equipos técnicos de las unidades de manejo integrado (UMI) coordinadas.","MINAM",null,"ascendente","no acumulado",2018,7,7,8,17,10,10,"ND",15,16,34,20,9.92,10,{"v":100,"d":"100.0"},null,{"$error":"#VALUE!"}]
[null,"SS.04.01.02","Información especializada para la conservación de los ecosistemas priorizados, de manera oportuna, según los procedimientos establecidos para las entidades que administran recursos naturales y ecosistemas en la zona marino-costera (ZMC)."]
[null,"ISS.04.01.02.01","Porcentaje de ecosistemas y especies de la ZMC que cuentan con diagnósticos o estudios especializados dentro del plazo establecido por la Convención sobre el Comercio Internacional de especies amenazadas de fauna y flora silvestre (CITES).","MINAM",null,"ascendente","acumulado",null,"ND","ND","ND","ND","ND","ND","ND",3.2,4.1,7.8,8.3," ",10,{"v":100,"d":"100.0"},null,{"$error":"#VALUE!"}]
[null,"SS.04.01.03","Asistencia técnica permanente sobre la conservación de los humedales costeros a los actores vinculados."]
[null,"ISS.04.01.03.01","Porcentaje de humedales costeros con acciones de monitoreo permanente.","MINAM",null,"ascendente","acumulado",null,"ND","ND","ND","ND","ND","ND","ND",1.46,1.46,2.19,3.65," ",10.4,{"v":100,"d":"100.0"},null,{"$error":"#VALUE!"}]
[null,"LN.04.02","Mejorar la protección en las áreas naturales protegidas, en el ámbito marítimo."]
[null,"SS.04.02.01","Vigilancia y control a actividades ilegales de la zona marino\u0002costera, en coordinación con entidades competentes, realizadas en las Áreas Naturales Protegidas (ANP)."]
[null,"ISS.04.02.01.01","Porcentaje de superficie de ANP con vigilancia y control coordinado con entidades competentes.","MINAM",null,"ascendente","acumulado",null,"ND","ND","ND","ND","ND","ND","ND","ND",47,48,49," ",67.18,{"v":100,"d":"100.00"},null,{"$f":"((U82/O82)*100)","v":{"$error":"#VALUE!"}}]
[null,"SS.04.02.02","Servicio de protección con participación de actores estratégicos (públicos, privados y sociedad civil) de las áreas naturales protegidas marino-costeras."]
[null,"ISS.04.02.02.01","Índice de mapa de actores.","MINAM",null,"ascendente","no acumulado",null,"ND","ND","ND","ND","ND","ND","ND","ND",0.53,0.52,0.53," ",0.48,{"v":100,"d":"100.00"},null,{"$error":"#VALUE!"}]
[null,"LN.04.03","Reducir los niveles y efectos de la contaminación en el dominio marítimo y la zona marino-costera."]
[null,"SS.04.03.01","Supervisión de las actividades desarrolladas en la zona marino\u0002costera, en coordinación con las entidades competentes a administrados de los sectores económicos productivos involucrados con el ámbito marítimo."]
[null,"ISS.04.03.01.01","Porcentaje de unidades fiscalizables de la zona marino-costera supervisadas, en coordinación con entidades competentes.","MINAM",null,"ascendente","no acumulado",null,"ND","ND","ND","ND","ND","ND","ND","ND",38,31,38," ",16,{"v":100,"d":"100.0"},null,{"$error":"#VALUE!"}]
[null,"SS.04.03.02","Fiscalización oportuna a los administrados de los sectores económicos productivos involucrados con el ámbito marítimo."]
[null,"ISS.04.03.02.01","Porcentaje de entidades fiscalizadas y sancionadas de manera oportuna.","MINAM",null,"ascendente","no acumulado",null,"ND","ND","ND","ND","ND","ND","ND","ND",54,39,6," ",100,{"v":100,"d":"100.0"},null,{"$error":"#VALUE!"}]
[null,"LN.04.04","Mejorar los mecanismos de articulación y coordinación, así como fortalecer capacidades para la gestión orientadas a la prevención y mitigación de desastres por acción de la naturaleza, entre las entidades involucradas."]
[null,"LN.04.05","Fortalecer la coordinación y articulación de las entidades públicas de los tres niveles de gobierno vinculados a la sostenibilidad de los recursos y ecosistemas del ámbito marítimo."]
[null,"LN.04.06","Fortalecer las capacidades de supervisión, control y cumplimiento normativo que rigen las actividades productivas del ámbito marítimo en las entidades públicas competentes."]
[null,"LN.04.07","Impulsar el desarrollo de energías renovables en el ámbito marítimo nacional."]
[null,"SS.04.07.01","Gestión eficaz en investigación científica, desarrollo tecnológico e innovación multidisciplinaria en el ámbito marítimo orientada al desarrollo de energías renovables."]
[null,"ISS.04.07.01.01","Variación porcentual anual del nivel de inversión en proyectos de energías renovables dentro del ámbito marítimo.","MINEM",null,"no_definido","minimo permisible",null,"ND","ND","ND","ND","ND","ND","ND","ND","ND","ND",0," ",0,{"v":100,"d":"100.0"},null,{"$error":"#VALUE!"}]
[null,"OP.05","Fortalecer la seguridad en el ámbito marítimo.",{"$nulls":18},{"$f":"+AvanceObjetivo(V97:V97)","v":{"v":100,"d":"100.0"}}]
[null,"IOP.05.01","Ratio de actividades ilícitas reportadas anualmente.","DICAPI",null,"descendente","acumulado",2018,1.14,1,1,0.98,0.98,0.98,0.98,"ND","ND",1.1,0.6,0.4982,1.06,{"v":100,"d":"100.00"},null,{"v":108.16326530612245,"d":"108.16"}]
[null,"LN.05.01","Fortalecer el control y la vigilancia de todas las actividades marítimas, en cumplimiento de la normativa nacional y compromisos internacionales, en resguardo de la seguridad de la vida humana, la protección del medio marino y sus recursos, y la represión de las actividades ilícitas, por parte de la Autoridad Marítima Nacional (AMN) y la Policía Nacional del Perú (PNP), en el ámbito de su responsabilidad."]
[null,"LN.05.02","Fortalecer la capacidad del poder naval de ejercer la vigilancia y defensa del área de jurisdiccional marítima nacional."]
[null,"SS.05.02.01","Protección eficaz de las actividades marítimas, realizadas por los actores vinculados con el ámbito marítimo."]
[null,"ISS.05.02.01.01","Variación porcentual anual de las actividades Ilícitas reportadas en el año respecto al número de actividades Ilícitas reportadas en el año anterior.","DICAPI",null,"descendente","acumulado",null,"ND","ND","ND","ND","ND","ND","ND","ND","ND",11.7,-40.5,-10.18,5.7,{"v":100,"d":"100.0"},null,{"$error":"#VALUE!"}]
[null,"LN.05.03","Incrementar la participación efectiva de unidades navales en operaciones dentro del marco de los compromisos bilaterales y multilaterales."]
[null,"LN.05.04","Fortalecer la capacidad de respuesta ante situaciones de búsqueda y salvamento marítimo en el área de responsabilidad de la AMN, así como en casos de desastre."]
[null,"SS.05.04.01","Respuesta ante situaciones de búsqueda y salvamento marítimo de acuerdo con el protocolo establecido por la Autoridad Marítima Nacional (AMN)."]
[null,"ISS.05.04.01.01","Porcentaje de operaciones de búsqueda y salvamento marítimo realizadas por la AMN de acuerdo con el protocolo establecido para cada una de ellas.","DICAPI",null,"ascendente","acumulado",null,"ND","ND","ND","ND","ND","ND","ND","ND",100,100,100,100,100,{"v":100,"d":"100.0"},null,{"$error":"#VALUE!"}]
[null,"SS.05.04.02","Respuesta inmediata de apoyo a la población costera ante casos de desastres naturales ocurridos en el ámbito marítimo nacional."]
[null,"ISS.05.04.02.01","Tiempo promedio de respuesta para la atención a la población costera afectada.","INDECI",null,"no_definido","seleccionar",null,"ND","ND","ND","ND","ND","ND","ND","ND","ND","ND","ND","ND","ND","ND",null,{"$error":"#VALUE!"}]
[null,"SS.05.04.03","Monitoreo permanente de eventos tsunamigénicos para la emisión de alerta o alarma en salvaguarda de los agentes vinculados con el ámbito marítimo."]
[null,"ISS.05.04.03.01","Porcentaje de boletines informativos emitidos de acuerdo con el protocolo establecido por el Centro Nacional de Alerta de Tsunamis (CNAT).","HIDROGRAFIA",null,"ascendente","acumulado",2018,100,100,100,100,100,100,100,100,100,100,100,100,100,{"v":100,"d":"100.0"},null,{"v":100,"d":"100.00"}]
[null,"LN.05.05","Fortalecer la capacidad de acción para la lucha contra las actividades ilícitas en el área de responsabilidad de la AMN y la PNP."]
[null,"LN.05.06","Velar por el cumplimiento de las normas para la protección y conservación del medio ambiente marino, ecosistemas y sus recursos."]
[null,"SS.05.06.01","Control y vigilancia del cumplimiento de la normatividad nacional e internacional de las actividades de los agentes vinculados con el ámbito marítimo nacional."]
[null,"ISS.05.06.01.01","Porcentaje de actividades que cumplen con la normatividad, respecto al total de actividades controladas.","DICAPI",null,"ascendente","acumulado",null,"ND","ND","ND","ND","ND","ND","ND","ND",94,100,100,98,100,{"v":100,"d":"100.0"},null,{"$error":"#VALUE!"}]
[null,"LN.05.07","Proteger el patrimonio cultural subacuático que se encuentren en el dominio marítimo nacional."]
[null,"SS.05.07.01","Identificación del patrimonio cultural subacuático actualizado del ámbito marítimo."]
[null,"ISS.05.07.01.01","Número de sitios del patrimonio cultural subacuático identificados anualmente.","MINCUL",null,"ascendente","no acumulado","ND","ND","ND","ND","ND","ND","ND","ND",7,0,2,1,2,0,{"v":100,"d":"100.0"},null,{"$error":"#VALUE!"}]
[null,"LN.05.08","Incentivar la consolidación de la identidad y cultura marítima en la población nacional."]
[null,"SS.05.08.01","Difusión amplia de la realidad marítima e intereses marítimos de la población nacional."]
[null,"ISS.05.08.01.01","Porcentaje de provincias, en cada región, donde se desarrollaron actividades de concientización sobre la realidad marítima durante el año.","DIRINTEMAR",null,"ascendente","acumulado","ND","ND","ND","ND","ND","ND","ND","ND","ND","ND",9.6,9.6,12.2,20,{"v":100,"d":"100.0"},null,{"$error":"#VALUE!"}]
[]
[null,null,"Indice de gestión de la política nacional",{"$nulls":18},{"$f":"+IFERROR(AVERAGE(V15,V25,V42,V71,V96),\"ND\")","v":{"v":83.576,"d":"83.6"}}]
[]
[]
[null,"ALERTAS IDENTIFICADAS"]
[null,"- LA POLÍTICA NACIONAL MARÍTIMA 2019-2030 SE ENCUENTRAN EN PROCESO DE ACTUALIZACIÓN,  SEGÚN LO DISPUESTO EN LA RESOLUCIÓN MINISTERIAL N° 000627-2024-DE DE FECHA 20 JUNIO 2024. ESTANDO ACTUALMENTE EN ETAPA DE REVISIÓN LAS 28 FICHAS DE SERVICIOS QUE CONFORMAN EL ANEXO 4."]
[null,"- INEI: LA DETERMINACIÓN DEL PRIMER VALOR DEL PBI MARÍTIMO (IOP.02.01) AL AÑO 2023, HA SIDO CALCULADO EN BASE A LA INFORMACIÓN EXISTENTE EN INDICADORES ACTUALES, REQUIRIÉNDOSE EL INCREMENTO DE INDICADORES PARA APROXIMAR ESTE VALOR A LA REALIDAD."]
[null,"- MINAM: SE REQUIERE DE MAYORES RECURSOS PARA EFECTUAR LA EVALUACIÓN DE LA CALIDAD DE LAS AGUAS MARINAS, ES DECIR, SU CAPACIDAD DE SOPORTAR LA VIDA MARINA Y SUS PROCESOS BIOLÓGICOS, EN UN MAYOR NÚMERO DE BAHÍAS. "]